bitfinex/quotes_ETHUSD_20250725
["timestamp","ask_amount","ask_price","bid_price","bid_amount"]
[1753445060108,5.0288284,3732.0,3731.9,0.25035028]
[1753445061125,0.1356,3732.0,3731.9,0.25035028]
[1753445061295,0.1356,3732.0,3731.9,1.26385028]
[1753445061497,0.1356,3732.0,3731.9,0.25035028]
[1753445062021,3.3651284,3732.0,3731.9,0.25035028]
[1753445062223,3.7869284,3732.0,3731.9,4.36635028]
[1753445062821,4.8722284,3732.0,3731.9,0.25035028]
[1753445063020,4.9496284,3732.0,3731.9,0.25035028]
[1753445063821,4.8722284,3732.0,3731.9,0.25035028]
[1753445064625,4.9496284,3732.0,3731.9,0.25035028]
[1753445067130,2.68031842,3730.9,3730.8,0.001]
[1753445067334,2.68031842,3730.9,3730.8,4.118]
[1753445067924,0.1344,3731.0,3730.8,4.118]
[1753445068230,2.81464658,3731.0,3730.9,1.0135]
[1753445069741,0.1344,3731.0,3730.9,1.0135]
[1753445070813,2.81464658,3731.0,3730.9,1.0135]
[1753445071637,0.1344,3731.0,3730.9,1.0135]
[1753445072008,2.68001679,3731.4,3730.9,2.1128]
[1753445072230,0.1344,3731.3,3731.0,1.0135]
[1753445072626,2.68010291,3731.2,3731.1,4.117]
[1753445074744,2.68010291,3731.2,3730.8,0.001]
[1753445075045,2.68002032,3731.4,3730.8,0.001]
[1753445075046,2.68031842,3730.9,3730.8,0.001]
[1753445075208,2.68031842,3730.9,3730.8,4.118]
[1753445075404,3.98138759,3731.0,3730.8,4.118]
[1753445075743,2.81464658,3731.0,3730.9,1.0135]
[1753445076536,2.81464658,3731.0,3730.9,0.4369]
[1753445076736,2.81464658,3731.0,3730.9,0.9633]
[1753445077635,2.81464658,3731.0,3730.8,4.118]
[1753445077636,2.68031842,3730.9,3730.8,0.001]
[1753445077835,2.68031842,3730.9,3730.8,4.118]
[1753445078823,2.81469113,3731.0,3730.8,0.001]
[1753445079105,2.81469113,3731.0,3730.9,4.117]
[1753445079311,2.81469113,3731.0,3730.9,4.6434]
[1753445080741,3.23031842,3730.9,3730.8,0.001]
[1753445080950,3.23031842,3730.9,3730.8,4.118]
[1753445081642,3.23031842,3730.9,3730.8,0.001]
[1753445081853,4.77391842,3730.9,3730.8,0.001]
[1753445082651,4.35211842,3730.9,3730.8,0.001]
[1753445083150,4.83211842,3730.9,3730.8,0.001]
[1753445083317,4.75471842,3730.9,3730.8,0.001]
[1753445085450,7.99454019,3730.9,3730.8,1e-08]
[1753445086416,12.11254019,3730.9,3730.8,1e-08]
[1753445086936,3.23067767,3730.4,3730.3,1e-08]
[1753445087249,11.68177767,3730.4,3730.3,1e-08]
[1753445087735,12.16177767,3730.4,3730.3,1e-08]
[1753445088119,12.08437767,3730.4,3730.3,1e-08]
[1753445089454,11.68177767,3730.4,3730.3,1e-08]
[1753445089953,12.08107767,3730.4,3730.3,1e-08]
[1753445090651,11.68177767,3730.4,3730.3,1e-08]
[1753445093164,12.08107767,3730.4,3730.3,1e-08]
[1753445093350,12.15847767,3730.4,3730.3,1e-08]
[1753445093549,12.08107767,3730.4,3730.3,1e-08]
[1753445094248,12.15847767,3730.4,3730.3,1e-08]
[1753445094460,4.33159327,3730.1,3730.0,1e-08]
[1753445094619,11.58399327,3730.1,3730.0,1e-08]
[1753445094823,12.06069327,3730.1,3730.0,1e-08]
[1753445095056,3.23118079,3729.7,3729.3,1e-08]
[1753445095261,7.35209647,3729.4,3729.3,1e-08]
[1753445095461,11.60449647,3729.4,3729.3,1e-08]
[1753445095759,12.00379647,3729.4,3729.3,1e-08]
[1753445096324,11.60449647,3729.4,3729.3,1e-08]
[1753445098838,11.60449647,3729.4,3729.3,0.96330001]
[1753445098839,0.1344,3729.4,3729.3,0.96330001]
[1753445099163,0.1344,3729.6,3729.4,1.0898]
[1753445099460,0.1344,3729.6,3729.3,0.96330001]
[1753445099461,2.81579647,3729.4,3729.3,1e-08]
[1753445099665,3.36579647,3729.4,3729.3,1e-08]
[1753445099963,6.36579647,3729.4,3729.3,1e-08]
[1753445100660,6.36579647,3729.4,3729.3,0.96330001]
[1753445100968,6.36579647,3729.4,3729.3,1e-08]
[1753445101339,6.36579647,3729.4,3727.7,1.1391]
[1753445101340,3.23225953,3728.2,3727.7,1.1391]
[1753445101540,3.23225953,3728.2,3726.8,0.20259338]
[1753445101541,6.23225953,3728.2,3728.1,1e-08]
[1753445101741,7.80885953,3728.2,3728.1,1e-08]
[1753445101940,7.88625953,3728.2,3728.1,1e-08]
[1753445102752,7.36183522,3727.4,3727.3,1e-08]
[1753445103065,11.49183522,3727.4,3727.3,1e-08]
[1753445103278,11.96853522,3727.4,3727.3,1e-08]
[1753445103648,9.50069057,3727.4,3727.3,1e-08]
[1753445103849,9.42329057,3727.4,3727.3,1e-08]
[1753445104261,13.15699057,3727.4,3727.3,1e-08]
[1753445104577,13.55629057,3727.4,3727.3,1e-08]
[1753445104941,13.15799057,3727.4,3727.3,1e-08]
[1753445105274,13.55729057,3727.4,3727.3,1e-08]
[1753445106138,9.02399057,3727.4,3727.3,1e-08]
[1753445106563,1.66215535,3727.4,3727.3,1.01660001]
[1753445107466,4.34499057,3727.4,3727.3,1.01660001]
[1753445107669,4.34499057,3727.4,3727.3,1e-08]
[1753445107842,4.34499057,3727.4,3727.3,1.01660001]
[1753445107843,4.89499057,3727.4,3727.3,1.01660001]
[1753445108042,9.03299057,3727.4,3727.3,1.01660001]
[1753445108877,2.21215535,3727.4,3727.3,1.01660001]
[1753445109043,6.35015535,3727.4,3727.3,1.01660001]
[1753445109244,9.03299057,3727.4,3727.3,1.01660001]
[1753445109546,9.03299057,3727.4,3727.3,1e-08]
[1753445109981,9.03299057,3727.4,3727.3,1.01660001]
[1753445111178,13.17649057,3727.4,3727.3,1e-08]
[1753445111379,13.71019057,3727.4,3727.3,1e-08]
[1753445111672,20.75019057,3727.4,3727.3,1e-08]
[1753445111908,20.35689057,3727.4,3727.3,1e-08]
[1753445113843,19.21439057,3727.4,3727.3,1.01660001]
[1753445114473,1.79655535,3727.4,3727.3,1.01660001]
[1753445114645,4.47939057,3727.4,3727.3,1.01660001]
[1753445114845,2.34655535,3727.4,3727.3,1.01660001]
[1753445115057,1.79655535,3727.4,3727.3,1.01660001]
[1753445115257,1.66215535,3727.4,3727.3,4.8279072]
[1753445115444,1.66215535,3727.4,3727.3,5.59244244]
[1753445116056,1.66215535,3727.4,3727.3,2.90953525]
[1753445116403,1.66215535,3727.4,3727.3,2.14500001]
[1753445117102,2.21215535,3727.4,3727.3,2.14500001]
[1753445117389,2.21215535,3727.4,3727.3,1.01660001]
[1753445117390,5.02939057,3727.4,3727.3,1.01660001]
[1753445118259,5.02939057,3727.4,3727.3,1e-08]
[1753445118851,9.17639057,3727.4,3727.3,1e-08]
[1753445119593,12.17639057,3727.4,3727.3,1e-08]
[1753445119743,5.02939057,3727.4,3727.3,1.01660001]
[1753445119948,1.79655535,3727.4,3727.3,2.17720001]
[1753445120371,1.79655535,3727.4,3727.3,2.39492001]
[1753445120372,1.18715535,3727.4,3727.3,2.39492001]
[1753445121701,1.18715535,3727.4,3727.3,5.10465627]
[1753445121848,1.18715535,3727.4,3727.3,2.39492001]
[1753445122384,1.18715535,3727.4,3727.3,2.17720001]
[1753445122585,1.32155535,3727.4,3727.3,2.17720001]
[1753445122908,1.32155535,3727.4,3727.3,4.8601072]
[1753445124012,1.32155535,3727.4,3727.3,2.17720001]
[1753445124912,1.18715535,3727.4,3727.3,4.8601072]
[1753445125115,1.18715535,3727.4,3727.3,5.62785709]
[1753445125680,1.18715535,3727.4,3727.3,2.9449499]
[1753445126920,1.18715535,3727.4,3727.3,4.8601072]
[1753445127216,1.18715535,3727.4,3727.3,2.17720001]
[1753445127801,1.18715535,3727.4,3727.3,4.8601072]
[1753445128189,1.18715535,3727.4,3727.3,2.17720001]
[1753445130805,1.73715535,3727.4,3727.3,0.54800001]
[1753445131005,1.73715535,3727.4,3727.3,1e-08]
[1753445131006,4.55439057,3727.4,3727.3,1e-08]
[1753445131184,6.49149057,3727.4,3727.3,1e-08]
[1753445131589,5.64299057,3727.4,3727.3,1e-08]
[1753445132915,6.49149057,3727.4,3727.3,1e-08]
[1753445133821,13.53149057,3727.4,3727.3,1e-08]
[1753445134288,16.53149057,3727.4,3727.3,1e-08]
[1753445136741,16.93169013,3727.4,3727.3,1e-08]
[1753445137215,16.93169013,3727.4,3726.5,1e-08]
[1753445137216,4.33371115,3726.6,3726.5,1e-08]
[1753445137416,11.61311115,3726.6,3726.5,1e-08]
[1753445137615,12.46211115,3726.6,3726.5,1e-08]
[1753445138318,12.61195071,3726.6,3726.5,1e-08]
[1753445138531,12.76600789,3726.6,3726.5,1e-08]
[1753445139218,12.61616833,3726.6,3726.5,1e-08]
[1753445140046,12.61616833,3726.6,3725.8,1e-08]
[1753445140047,4.31641529,3725.9,3725.8,1e-08]
[1753445140247,8.59481529,3725.9,3725.8,1e-08]
[1753445140418,4.45081529,3725.9,3725.8,1e-08]
[1753445140619,8.59481529,3725.9,3725.8,1e-08]
[1753445140853,11.59481529,3725.9,3725.8,1e-08]
[1753445141053,11.59481529,3725.9,3724.8,0.001]
[1753445141054,6.23521253,3724.1,3723.6,0.4387]
[1753445141220,10.40021253,3724.1,3723.8,0.5041]
[1753445142242,10.40021253,3724.1,3723.6,0.001]
[1753445142721,10.40121253,3724.1,3724.0,0.5051]
[1753445143230,6.23521253,3724.1,3724.0,0.5051]
[1753445143430,0.55,3724.1,3724.0,0.9428]
[1753445143831,3.23521253,3724.1,3724.0,0.9428]
[1753445144758,3.23521253,3724.1,3724.0,0.001]
[1753445144924,6.23521253,3724.1,3724.0,0.001]
[1753445145754,10.40521253,3724.1,3724.0,0.9428]
[1753445146137,3.23521253,3724.1,3724.0,0.5051]
[1753445146344,7.40721253,3724.1,3724.0,0.001]
[1753445146544,3.23550098,3723.7,3723.6,0.001]
[1753445148073,6.23550098,3723.7,3723.6,0.001]
[1753445148392,6.23550098,3723.7,3723.6,1e-08]
[1753445148570,7.36358869,3723.7,3723.6,1e-08]
[1753445148973,8.49398869,3723.7,3723.6,1e-08]
[1753445149132,9.33158869,3723.7,3723.6,1e-08]
[1753445149838,8.49398869,3723.7,3723.6,1e-08]
[1753445150337,12.66898869,3723.7,3723.6,1e-08]
[1753445150540,12.66898869,3723.7,3723.6,0.94180001]
[1753445150541,7.36358869,3723.7,3723.6,0.94180001]
[1753445150853,11.53858869,3723.7,3723.6,0.94180001]
[1753445151058,3.94798869,3723.7,3723.6,0.94180001]
[1753445151581,3.94798869,3723.7,3723.6,0.50410001]
[1753445151738,4.49798869,3723.7,3723.6,0.50410001]
[1753445151934,4.49798869,3723.7,3723.6,1e-08]
[1753445152158,8.67298869,3723.7,3723.6,1e-08]
[1753445152363,12.81328869,3723.7,3723.6,1e-08]
[1753445153277,13.27938869,3723.7,3723.6,1e-08]
[1753445153611,14.40197554,3723.7,3723.6,1e-08]
[1753445154603,13.27938869,3723.7,3723.6,1e-08]
[1753445154901,12.81328869,3723.7,3723.6,1e-08]
[1753445155401,13.27938869,3723.7,3723.6,1e-08]
[1753445155611,13.64358869,3723.7,3723.6,1e-08]
[1753445155903,14.39449637,3723.7,3723.6,1e-08]
[1753445156453,14.03229637,3723.7,3723.6,1e-08]
[1753445156981,14.39649637,3723.7,3723.6,1e-08]
[1753445159203,14.03229637,3723.7,3723.6,1e-08]
[1753445159999,13.28138869,3723.7,3723.6,1e-08]
[1753445160497,8.63828869,3723.7,3723.6,1e-08]
[1753445160665,6.94798869,3723.7,3723.6,0.50410001]
[1753445160860,11.12198869,3723.7,3723.6,1e-08]
[1753445161060,11.67198869,3723.7,3723.6,1e-08]
[1753445161762,8.12198869,3723.7,3723.6,0.94180001]
[1753445161962,8.12198869,3723.7,3723.6,0.50410001]
[1753445162185,11.67198869,3723.7,3723.6,0.50410001]
[1753445162492,3.94798869,3723.7,3723.6,0.94180001]
[1753445162693,3.94798869,3723.7,3723.6,2.05710001]
[1753445163608,1.12808771,3723.7,3723.6,2.26281001]
[1753445164008,4.49798869,3723.7,3723.6,2.05710001]
[1753445164595,4.49798869,3723.7,3723.6,0.94180001]
[1753445164797,4.49798869,3723.7,3723.6,1e-08]
[1753445165009,4.49798869,3723.7,3723.6,0.50410001]
[1753445165010,8.67898869,3723.7,3723.6,0.50410001]
[1753445165519,8.67898869,3723.7,3723.6,1e-08]
[1753445166095,15.71898869,3723.7,3723.6,1e-08]
[1753445166296,18.71898869,3723.7,3723.6,1e-08]
[1753445168394,19.15818869,3723.7,3723.6,1e-08]
[1753445169403,19.3079471,3723.7,3723.6,1e-08]
[1753445169604,19.6721471,3723.7,3723.6,1e-08]
[1753445169918,0.55,3722.8,3721.2,2.68725985]
[1753445170102,3.23636668,3722.5,3722.4,0.4627]
[1753445170430,3.37076668,3722.5,3722.4,0.4627]
[1753445171129,3.23643885,3722.4,3721.9,0.4627]
[1753445171424,6.23643885,3722.4,3721.9,0.4627]
[1753445171625,6.38928129,3722.4,3722.3,1e-08]
[1753445171836,6.91408129,3722.4,3722.3,1e-08]
[1753445172034,6.23643885,3722.4,3722.3,1e-08]
[1753445172336,6.23643885,3722.4,3722.3,1.00900001]
[1753445172626,10.41343885,3722.4,3722.3,1.00900001]
[1753445172795,3.23643885,3722.4,3722.3,1.00900001]
[1753445175616,0.55,3722.4,3722.3,1.00900001]
[1753445175948,0.1344,3722.6,3722.4,1.1023]
[1753445176248,0.1344,3722.6,3722.5,1.009]
[1753445176653,4.01318596,3722.9,3722.5,1.009]
[1753445176654,1.32708651,3722.9,3722.6,1.1379]
[1753445176950,1.32708651,3722.9,3722.8,1.1379]
[1753445177126,1.32708651,3722.9,3722.8,2.1469]
[1753445177316,1.32708651,3722.9,3722.8,1.009]
[1753445177518,1.32708651,3722.9,3722.8,2.1558]
[1753445178517,4.56316456,3722.9,3722.8,2.1558]
[1753445178712,4.56316456,3722.9,3722.8,1.1468]
[1753445178913,3.23629452,3722.6,3722.5,1.6892]
[1753445179119,3.37069452,3722.6,3722.5,1.6892]
[1753445179412,2.68643885,3722.4,3722.3,1e-08]
[1753445179613,3.37083885,3722.4,3722.3,1e-08]
[1753445179849,0.1344,3722.4,3722.3,1.00900001]
[1753445180035,0.1344,3722.5,3722.3,1.22492001]
[1753445180349,0.1344,3722.5,3722.4,1.009]
[1753445180872,2.82077401,3722.5,3722.4,1.009]
[1753445181464,1.32708651,3722.9,3722.5,1.1136]
[1753445181764,0.1344,3722.8,3722.6,1.009]
[1753445181964,2.82056408,3722.8,3722.5,1.1136]
[1753445182196,2.82056408,3722.8,3722.7,1.009]
[1753445183109,0.1344,3722.8,3722.7,1.009]
[1753445183302,3.3705502,3722.8,3722.5,1.1136]
[1753445183515,2.68643885,3722.4,3722.3,1e-08]
[1753445183801,3.37083885,3722.4,3722.3,1e-08]
[1753445183951,3.89563885,3722.4,3722.3,1e-08]
[1753445184147,3.37083885,3722.4,3722.3,1e-08]
[1753445184771,3.89563885,3722.4,3722.3,1e-08]
[1753445184972,7.33483885,3722.4,3722.3,1e-08]
[1753445185172,7.58454388,3722.4,3722.3,1e-08]
[1753445185482,7.58442565,3722.4,3722.3,1e-08]
[1753445185684,7.14522565,3722.4,3722.3,1e-08]
[1753445185898,11.32122565,3722.4,3722.3,1e-08]
[1753445186089,11.07163885,3722.4,3722.3,1e-08]
[1753445188170,10.54683885,3722.4,3722.3,1e-08]
[1753445188370,6.37083885,3722.4,3722.3,1e-08]
[1753445188597,11.07063885,3722.4,3722.3,1e-08]
[1753445189198,12.61943885,3722.4,3722.3,1e-08]
[1753445189420,12.61943885,3722.4,3721.0,1.1339]
[1753445189421,3.23687194,3721.8,3721.0,1.1339]
[1753445189563,11.57727194,3721.8,3720.8,2.1429]
[1753445189764,12.23647194,3721.8,3721.7,1e-08]
[1753445189985,12.67567194,3721.8,3721.7,1e-08]
[1753445190903,11.71167194,3721.8,3721.7,1e-08]
[1753445191600,6.37127194,3721.8,3721.7,1e-08]
[1753445191762,11.73727194,3721.8,3721.7,1e-08]
[1753445191965,12.12767194,3721.8,3721.7,1e-08]
[1753445192226,7.42887194,3721.8,3721.7,1e-08]
[1753445192407,10.65975926,3721.8,3721.7,1e-08]
[1753445192610,9.86287194,3721.8,3721.7,0.54630001]
[1753445192894,10.41287194,3721.8,3721.7,1e-08]
[1753445193937,6.23687194,3721.8,3721.7,1e-08]
[1753445194101,4.53797997,3722.9,3721.7,1.00900001]
[1753445194299,2.68655231,3722.3,3721.9,1.1651]
[1753445194496,0.24886722,3722.7,3722.0,1.009]
[1753445194744,0.24886722,3722.7,3722.1,1.03586655]
[1753445194745,2.68626746,3722.7,3722.1,1.03586655]
[1753445194897,2.6861529,3722.8,3722.2,1.009]
[1753445195098,0.24896349,3722.8,3722.4,3.85150839]
[1753445195433,1.32708651,3722.9,3722.4,3.85150839]
[1753445195434,4.01316683,3722.9,3722.5,1.009]
[1753445195596,2.68629452,3722.6,3722.4,1.1651]
[1753445196234,2.68629452,3722.6,3722.5,0.9599]
[1753445196531,1.32708651,3722.9,3722.5,0.9599]
[1753445196734,3.23621267,3722.8,3722.6,0.9599]
[1753445196934,1.32708651,3722.9,3722.7,0.9599]
[1753445197134,1.32708651,3722.9,3722.4,1.1651]
[1753445197135,0.55,3722.8,3722.4,1.1651]
[1753445197346,2.68636668,3722.5,3722.4,1.1651]
[1753445197742,2.68636668,3722.5,3722.4,2.125]
[1753445198047,2.68627164,3722.7,3722.4,2.125]
[1753445198268,2.68636668,3722.5,3722.4,1.1651]
[1753445198928,2.68636668,3722.5,3722.4,2.125]
[1753445200223,3.23636668,3722.5,3722.4,2.125]
[1753445200534,3.23636668,3722.5,3721.7,1e-08]
[1753445200535,2.6865832,3722.2,3722.1,0.5046]
[1753445200743,3.23672756,3722.0,3721.9,1.1437]
[1753445201133,3.23672756,3722.0,3721.9,2.1036]
[1753445201617,0.55,3722.0,3721.9,2.1036]
[1753445201825,3.37112756,3722.0,3721.9,2.1036]
[1753445202239,3.37112756,3722.0,3721.7,1e-08]
[1753445202240,0.6844,3722.0,3721.7,1e-08]
[1753445202416,2.68687194,3721.8,3721.7,0.95990001]
[1753445202636,2.68682384,3721.9,3721.7,0.95990001]
[1753445202829,2.68682384,3721.9,3721.8,0.9599]
[1753445203355,2.68682384,3721.9,3721.7,1e-08]
[1753445203356,3.23687194,3721.8,3721.7,1e-08]
[1753445203560,3.37127194,3721.8,3721.7,1e-08]
[1753445204041,10.54427194,3721.8,3721.7,1e-08]
[1753445204241,11.51527194,3721.8,3721.7,1e-08]
[1753445204416,11.07277194,3721.8,3721.7,1e-08]
[1753445204621,11.51527194,3721.8,3721.7,1e-08]
[1753445205558,7.34227194,3721.8,3721.7,1e-08]
[1753445205766,11.51627194,3721.8,3721.7,1e-08]
[1753445206860,10.54527194,3721.8,3721.7,1e-08]
[1753445207165,10.54327194,3721.8,3721.7,1e-08]
[1753445207367,6.37127194,3721.8,3721.7,1e-08]
[1753445207552,9.99327194,3721.8,3721.7,0.95990001]
[1753445207732,9.99327194,3721.8,3721.7,2.07340001]
[1753445208139,10.54327194,3721.8,3721.7,1e-08]
[1753445208339,11.07177194,3721.8,3721.7,1e-08]
[1753445208569,10.54327194,3721.8,3721.7,1e-08]
[1753445209563,0.1344,3721.8,3721.7,1e-08]
[1753445209864,0.002,3722.4,3721.7,1e-08]
[1753445209865,2.68845937,3722.4,3721.7,0.95990001]
[1753445210037,0.1344,3722.1,3721.8,0.94611682]
[1753445210244,0.1344,3722.1,3721.8,0.49081682]
[1753445210428,0.1344,3722.1,3721.9,0.9599]
[1753445210630,0.1344,3722.1,3722.0,1.37366517]
[1753445210839,0.1344,3722.1,3722.0,0.9599]
[1753445211846,2.82105538,3722.1,3722.0,0.9599]
[1753445212049,0.1344,3722.1,3722.0,0.9599]
[1753445213048,0.002,3722.4,3722.1,1.1347]
[1753445213286,0.002,3722.4,3722.2,3.6733013]
[1753445213497,0.002,3722.4,3722.3,3.4359828]
[1753445213657,0.002,3722.4,3722.3,4.3958828]
[1753445213984,0.002,3722.4,3722.3,5.5507828]
[1753445214981,2.68848982,3722.4,3722.3,0.5046]
[1753445215157,3.23848982,3722.4,3722.3,0.9599]
[1753445215354,0.002,3722.4,3722.3,0.9599]
[1753445216687,0.002,3722.4,3722.3,3.64641102]
[1753445216891,0.002,3722.4,3722.3,2.0702]
[1753445217091,0.002,3722.4,3722.3,4.78357613]
[1753445217274,0.002,3722.4,3722.3,2.84408642]
[1753445217469,0.002,3722.4,3722.3,5.53059744]
[1753445218860,0.002,3722.4,3722.3,5.50373233]
[1753445219287,0.002,3722.4,3722.3,5.53059744]
[1753445220203,0.002,3722.4,3722.3,2.84408642]
[1753445220358,0.002,3722.4,3722.3,2.81722131]
[1753445220681,0.002,3722.4,3722.3,2.84408642]
[1753445220883,0.002,3722.4,3722.3,5.53059744]
[1753445221273,0.002,3722.4,3722.3,2.84408642]
[1753445221596,0.002,3722.4,3722.3,5.50373233]
[1753445221784,0.002,3722.4,3722.3,9.71359744]
[1753445221975,0.002,3722.4,3722.3,6.99822131]
[1753445222310,0.002,3722.4,3722.3,9.68473233]
[1753445223392,0.002,3722.4,3722.3,6.99822131]
[1753445223597,0.002,3722.4,3722.3,6.2512]
[1753445223989,0.002,3722.4,3722.3,8.93771102]
[1753445224561,0.002,3722.4,3722.3,6.2512]
[1753445224766,0.002,3722.4,3722.3,8.93771102]
[1753445225073,0.002,3722.4,3722.3,9.07211102]
[1753445225268,0.002,3722.4,3722.3,7.56147051]
[1753445225671,0.002,3722.4,3722.3,10.24798153]
[1753445227320,0.002,3722.4,3722.3,7.56147051]
[1753445227500,0.002,3722.4,3722.3,10.24798153]
[1753445227907,0.002,3722.4,3722.3,5.10708153]
[1753445228067,0.002,3722.4,3722.3,6.59857051]
[1753445228272,0.002,3722.4,3722.3,10.20328153]
[1753445229003,0.002,3722.4,3722.3,7.51677051]
[1753445229305,0.002,3722.4,3722.3,5.4207]
[1753445229811,3.87083885,3722.4,3722.3,4.176]
[1753445230587,2.68663994,3722.2,3722.1,4.179]
[1753445230904,2.68663994,3722.2,3722.0,4.179]
[1753445230905,2.68666082,3722.1,3722.0,4.179]
[1753445231321,0.498,3722.2,3722.0,4.179]
[1753445231322,2.68659477,3722.2,3722.0,4.179]
[1753445231615,0.6864,3722.4,3722.0,4.179]
[1753445231786,0.6864,3722.4,3722.0,4.6629]
[1753445231988,2.68663086,3722.2,3722.0,4.179]
[1753445232187,3.37284077,3722.4,3722.0,4.179]
[1753445232188,3.18465538,3722.1,3722.0,4.179]
[1753445232395,2.68672756,3722.0,3721.7,1e-08]
[1753445232594,2.68687194,3721.8,3721.7,1e-08]
[1753445232797,2.68687194,3721.8,3721.7,4.17700001]
[1753445233000,3.18487194,3721.8,3721.7,4.17700001]
[1753445233199,2.68687194,3721.8,3721.7,4.17700001]
[1753445234202,3.18487194,3721.8,3721.7,4.17700001]
[1753445234522,2.82122789,3721.9,3721.7,4.17700001]
[1753445234702,0.1344,3721.9,3721.7,4.17700001]
[1753445235021,0.002,3722.4,3721.8,2.102]
[1753445235188,0.002,3722.4,3722.0,0.1344]
[1753445235389,0.002,3722.4,3721.9,0.9182]
[1753445235390,0.002,3722.4,3722.1,6.86258651]
[1753445235594,0.002,3722.4,3722.2,0.1344]
[1753445235825,0.002,3722.4,3722.3,3.80337613]
[1753445236493,0.002,3722.4,3722.3,4.72157613]
[1753445236892,0.002,3722.4,3722.3,7.72157613]
[1753445237092,0.002,3722.4,3722.3,7.69471102]
[1753445237513,0.002,3723.2,3723.1,3.80123376]
[1753445237820,0.002,3723.2,3723.1,8.35835714]
[1753445238021,0.002,3723.2,3723.1,9.41095714]
[1753445239623,0.002,3723.2,3723.1,4.31575714]
[1753445239828,0.002,3723.2,3723.1,4.176]
[1753445239992,0.002,3723.2,3723.1,5.12105933]
[1753445240426,0.002,3723.2,3723.1,5.0942]
[1753445241133,0.002,3723.2,3723.1,8.94423376]
[1753445241799,0.002,3723.2,3723.1,4.76823376]
[1753445242015,0.002,3723.2,3723.1,1.92297087]
[1753445242220,2.68786869,3723.2,3722.7,1.1449]
[1753445242431,0.498,3723.1,3722.9,0.1344]
[1753445242805,0.002,3723.2,3722.9,1.0526]
[1753445243129,0.002,3723.2,3723.0,7.78320426]
[1753445243330,0.002,3723.2,3723.1,0.02685933]
[1753445243627,0.002,3723.2,3723.1,5.71523945]
[1753445243806,0.002,3723.2,3723.1,8.68838012]
[1753445244728,0.002,3723.2,3723.1,12.86938012]
[1753445245532,1e-08,3723.2,3723.1,12.86938012]
[1753445246237,0.002,3724.1,3724.0,6.79418464]
[1753445246540,0.002,3724.1,3724.0,11.92114012]
[1753445246702,0.002,3724.1,3724.0,12.83934012]
[1753445246903,0.002,3724.1,3724.0,12.97374012]
[1753445247236,0.002,3724.1,3724.0,12.97574012]
[1753445247839,1e-08,3724.1,3724.0,12.97574012]
[1753445248731,0.002,3724.7,3724.6,6.85155206]
[1753445248914,0.002,3724.7,3724.6,7.80520125]
[1753445249102,0.002,3724.7,3724.6,13.03680125]
[1753445251506,0.002,3724.7,3724.6,13.03480125]
[1753445251705,0.002,3724.7,3724.6,8.85780125]
[1753445251935,0.002,3724.7,3724.6,13.03380125]
[1753445252243,0.002,3724.9,3724.6,13.03380125]
[1753445252244,0.002,3724.9,3724.8,2.6847079]
[1753445252437,0.002,3724.9,3724.8,12.86890589]
[1753445252640,0.002,3724.9,3724.8,13.89465882]
[1753445253636,0.002,3724.9,3724.8,9.71965882]
[1753445253853,0.002,3724.9,3724.8,13.89465882]
[1753445254633,0.002,3724.9,3724.8,8.80145882]
[1753445255036,0.002,3724.9,3724.8,5.80145882]
[1753445255235,0.002,3724.9,3724.8,0.1344]
[1753445255435,0.5,3724.9,3724.8,6.9931079]
[1753445255654,0.002,3724.9,3724.8,6.9931079]
[1753445256723,0.002,3724.9,3724.8,12.0691079]
[1753445258035,0.002,3724.9,3724.8,11.1191079]
[1753445258335,0.002,3724.9,3724.8,12.55112797]
[1753445259015,0.002,3724.9,3724.8,8.37712797]
[1753445259221,0.002,3724.9,3724.8,11.42212797]
[1753445261311,0.002,3724.9,3724.8,8.42212797]
[1753445262244,0.002,3724.9,3724.8,12.37212797]
[1753445263021,0.002,3724.9,3724.8,11.42212797]
[1753445264144,0.002,3724.9,3724.8,11.93842797]
[1753445264526,0.002,3724.9,3724.8,12.37212797]
[1753445264721,0.002,3724.9,3724.8,11.42212797]
[1753445264918,0.5088,3724.9,3724.8,2.8191079]
[1753445265248,0.5088,3724.9,3724.8,6.9861079]
[1753445266150,0.5088,3724.9,3724.8,4.3014]
[1753445266341,0.5088,3724.9,3724.8,2.8191079]
[1753445266541,0.5088,3724.9,3724.8,6.9851079]
[1753445266972,0.002,3724.9,3724.8,6.9851079]
[1753445267149,0.002,3724.9,3724.8,10.95210341]
[1753445267357,0.002,3724.9,3724.8,7.95210341]
[1753445267567,0.5088,3724.9,3724.8,4.3004]
[1753445268162,0.96,3724.9,3724.8,0.1344]
[1753445268467,0.002,3724.9,3724.8,4.166]
[1753445268786,3.64463582,3724.9,3724.2,2.68514043]
[1753445268931,1.1247,3724.9,3724.6,0.1344]
[1753445269131,0.5068,3724.8,3724.7,4.171]
[1753445269662,0.002,3724.9,3724.8,2.6847079]
[1753445270031,0.002,3724.9,3724.7,4.3054]
[1753445270258,0.002,3724.9,3724.8,2.71155497]
[1753445270561,0.002,3724.9,3724.8,3.65488249]
[1753445271134,0.002,3724.9,3724.8,4.60488249]
[1753445271641,0.002,3724.9,3724.8,3.65488249]
[1753445271962,0.002,3724.9,3724.8,6.8547079]
[1753445272968,0.002,3724.9,3724.7,0.1344]
[1753445273164,0.002,3724.9,3724.8,4.17]
[1753445273365,0.4512,3724.8,3724.7,0.1344]
[1753445273662,0.958,3724.8,3724.7,4.3064]
[1753445274036,0.5068,3724.8,3724.7,4.3064]
[1753445274236,0.5068,3724.8,3724.7,6.99117998]
[1753445274457,0.002,3724.9,3724.7,4.3064]
[1753445274769,0.5088,3724.9,3724.7,4.3064]
[1753445274969,0.5068,3724.8,3724.7,4.3064]
[1753445275380,0.002,3724.9,3724.7,6.99117998]
[1753445275580,0.5088,3724.9,3724.7,4.3064]
[1753445276189,0.5088,3724.9,3724.8,2.6847079]
[1753445276376,0.5088,3724.9,3724.7,4.3064]
[1753445276580,0.5068,3724.8,3724.7,4.3064]
[1753445276766,0.002,3724.9,3724.7,4.3064]
[1753445276767,0.002,3724.9,3724.8,2.6847079]